[Event "Titled Tuesday Blitz August 1 Late 2023"]
[White "Gerbelli Neto, Eduardo"]
[Black "Arias Igual, Alejandro"]
[WhiteFideId "2103281"]
[BlackFideId "2254905"]
[WhiteElo "2308"]
[BlackElo "2250"]
[Result "0-1"]
[Round "9"]
[TimeControl "180+1"]
[Date "2023.08.01"]
[WhiteClock "0:00:39"]
[BlackClock "0:00:49"]
[Board "109"]

1. e4 {[%clk 0:03:00]}  c5 {[%clk 0:02:59]} 2. Nc3 {[%clk 0:03:00]}  Nc6 {[%clk 0:02:58]} 3. f4 {[%clk 0:03:01]}  g6 {[%clk 0:02:58]} 4. Nf3 {[%clk 0:03:02]}  Bg7 {[%clk 0:02:58]} 5. Bc4 {[%clk 0:03:02]}  e6 {[%clk 0:02:57]} 6. f5 {[%clk 0:03:03]}  Nge7 {[%clk 0:02:52]} 7. fxe6 {[%clk 0:03:02]}  fxe6 {[%clk 0:02:50]} 8. d3 {[%clk 0:03:03]}  O-O {[%clk 0:02:44]} 9. O-O {[%clk 0:03:03]}  Na5 {[%clk 0:02:36]} 10. Bg5 {[%clk 0:02:59]}  h6 {[%clk 0:02:28]} 11. Bh4 {[%clk 0:02:51]}  g5 {[%clk 0:02:26]} 12. Bf2 {[%clk 0:02:43]}  b6 {[%clk 0:02:18]} 13. Bb3 {[%clk 0:02:08]}  d5 {[%clk 0:01:59]} 14. Qe2 {[%clk 0:01:51]}  Nxb3 {[%clk 0:01:51]} 15. axb3 {[%clk 0:01:50]}  d4 {[%clk 0:01:49]} 16. Nb1 {[%clk 0:01:34]}  Ng6 {[%clk 0:01:45]} 17. g3 {[%clk 0:01:33]}  e5 {[%clk 0:01:42]} 18. Nfd2 {[%clk 0:01:17]}  Bh3 {[%clk 0:01:36]} 19. Re1 {[%clk 0:01:16]}  Qd7 {[%clk 0:01:24]} 20. Nc4 {[%clk 0:00:56]}  Rf6 {[%clk 0:00:54]} 21. Nxb6 {[%clk 0:00:55]}  Rxb6 {[%clk 0:00:53]} 22. Na3 {[%clk 0:00:55]}  Rf8 {[%clk 0:00:49]} 23. Nc4 {[%clk 0:00:39]}  Rbf6 {[%clk 0:00:49]} 0-1


[Site "https://www.chess.com"]

[Event "Titled Tuesday Blitz August 1 Late 2023"]
[White "Feliz Dotel, Dewar Bienvenido"]
[Black "Miguelitro69"]
[WhiteFideId "6402801"]
[WhiteElo "2158"]
[BlackElo "2293"]
[Result "1-0"]
[Round "9"]
[TimeControl "180+1"]
[Date "2023.08.01"]
[WhiteClock "0:00:43"]
[BlackClock "0:00:00"]
[Board "111"]

1. d4 {[%clk 0:02:58]}  Nf6 {[%clk 0:02:57]} 2. e3 {[%clk 0:02:58]}  d6 {[%clk 0:02:56]} 3. Nf3 {[%clk 0:02:56]}  g6 {[%clk 0:02:56]} 4. Be2 {[%clk 0:02:55]}  Bg7 {[%clk 0:02:56]} 5. b4 {[%clk 0:02:53]}  O-O {[%clk 0:02:57]} 6. Bb2 {[%clk 0:02:51]}  a5 {[%clk 0:02:57]} 7. b5 {[%clk 0:02:46]}  Nbd7 {[%clk 0:02:57]} 8. O-O {[%clk 0:02:42]}  c6 {[%clk 0:02:43]} 9. a4 {[%clk 0:02:38]}  Qc7 {[%clk 0:02:27]} 10. c4 {[%clk 0:02:35]}  e5 {[%clk 0:02:26]} 11. Nbd2 {[%clk 0:02:22]}  Re8 {[%clk 0:02:22]} 12. Qc2 {[%clk 0:02:17]}  cxb5 {[%clk 0:02:16]} 13. axb5 {[%clk 0:02:16]}  b6 {[%clk 0:02:16]} 14. Rfc1 {[%clk 0:02:15]}  Bb7 {[%clk 0:02:14]} 15. Ra3 {[%clk 0:02:00]}  Rac8 {[%clk 0:02:12]} 16. Qa4 {[%clk 0:01:48]}  Qb8 {[%clk 0:02:06]} 17. Rac3 {[%clk 0:01:33]}  e4 {[%clk 0:01:56]} 18. Ng5 {[%clk 0:01:28]}  h6 {[%clk 0:01:50]} 19. Nh3 {[%clk 0:01:29]}  g5 {[%clk 0:01:51]} 20. Qa1 {[%clk 0:01:21]}  Rc7 {[%clk 0:01:49]} 21. Nb3 {[%clk 0:01:17]}  Qd8 {[%clk 0:01:48]} 22. R3c2 {[%clk 0:01:15]}  Qe7 {[%clk 0:01:46]} 23. c5 {[%clk 0:01:14]}  dxc5 {[%clk 0:01:45]} 24. dxc5 {[%clk 0:01:14]}  Bd5 {[%clk 0:01:36]} 25. Nd4 {[%clk 0:01:04]}  Qf8 {[%clk 0:00:33]} 26. cxb6 {[%clk 0:00:54]}  Rxc2 {[%clk 0:00:32]} 27. Rxc2 {[%clk 0:00:55]}  Nc5 {[%clk 0:00:13]} 28. Nf5 {[%clk 0:00:50]}  Nb3 {[%clk 0:00:04]} 29. Qd1 {[%clk 0:00:44]}  Be6 {[%clk 0:00:00]} 30. Nxg7 {[%clk 0:00:43]} 1-0


[Site "https://www.chess.com"]

[Event "Titled Tuesday Blitz August 1 Late 2023"]
[White "Jahnz, Fabian"]
[Black "Celestino, Rafael Teixeira"]
[WhiteFideId "4653300"]
[BlackFideId "2108925"]
[WhiteElo "2327"]
[BlackElo "2225"]
[Result "0-1"]
[Round "9"]
[TimeControl "180+1"]
[Date "2023.08.01"]
[WhiteClock "0:00:07"]
[BlackClock "0:00:55"]
[Board "112"]

1. e4 {[%clk 0:02:57]}  e5 {[%clk 0:02:55]} 2. d4 {[%clk 0:02:57]}  exd4 {[%clk 0:02:54]} 3. Qxd4 {[%clk 0:02:57]}  Nc6 {[%clk 0:02:55]} 4. Qe3 {[%clk 0:02:58]}  Nf6 {[%clk 0:02:55]} 5. Nc3 {[%clk 0:02:58]}  Bb4 {[%clk 0:02:56]} 6. Bd2 {[%clk 0:02:58]}  d6 {[%clk 0:02:56]} 7. O-O-O {[%clk 0:02:58]}  Be6 {[%clk 0:02:56]} 8. a3 {[%clk 0:02:58]}  Ba5 {[%clk 0:02:56]} 9. f3 {[%clk 0:02:52]}  Qd7 {[%clk 0:02:56]} 10. Kb1 {[%clk 0:02:49]}  O-O-O {[%clk 0:02:56]} 11. g4 {[%clk 0:02:40]}  h6 {[%clk 0:02:56]} 12. h4 {[%clk 0:02:39]}  a6 {[%clk 0:02:56]} 13. Nge2 {[%clk 0:02:37]}  Ne5 {[%clk 0:02:56]} 14. Nd4 {[%clk 0:02:31]}  Bb6 {[%clk 0:02:55]} 15. Qf2 {[%clk 0:02:08]}  d5 {[%clk 0:02:50]} 16. Be3 {[%clk 0:00:50]}  dxe4 {[%clk 0:02:46]} 17. Nxe6 {[%clk 0:00:40]}  Qxe6 {[%clk 0:02:12]} 18. Rxd8+ {[%clk 0:00:36]}  Rxd8 {[%clk 0:02:13]} 19. Bxb6 {[%clk 0:00:37]}  cxb6 {[%clk 0:02:14]} 20. g5 {[%clk 0:00:23]}  hxg5 {[%clk 0:01:34]} 21. hxg5 {[%clk 0:00:24]}  Nfd7 {[%clk 0:01:20]} 22. Bh3 {[%clk 0:00:22]}  Qc6 {[%clk 0:01:06]} 23. Nxe4 {[%clk 0:00:21]}  Kb8 {[%clk 0:01:05]} 24. Rd1 {[%clk 0:00:20]}  Nc4 {[%clk 0:01:02]} 25. Qg3+ {[%clk 0:00:16]}  Ka7 {[%clk 0:01:01]} 26. Nd6 {[%clk 0:00:15]}  Nc5 {[%clk 0:00:55]} 27. Nb5+ {[%clk 0:00:07]}  Qxb5 {[%clk 0:00:55]} 0-1


[Site "https://www.chess.com"]

[Event "Titled Tuesday Blitz August 1 Late 2023"]
[White "Broca Jimenez, Fernando"]
[Black "Vargas, Mauricio"]
[WhiteFideId "5104742"]
[BlackFideId "4404572"]
[WhiteElo "2214"]
[BlackElo "1886"]
[Result "1-0"]
[Round "9"]
[TimeControl "180+1"]
[Date "2023.08.01"]
[WhiteClock "0:00:35"]
[BlackClock "0:00:00"]
[Board "115"]

1. e4 {[%clk 0:03:00]}  d5 {[%clk 0:02:52]} 2. exd5 {[%clk 0:02:59]}  Qxd5 {[%clk 0:02:53]} 3. c4 {[%clk 0:02:59]}  Qa5 {[%clk 0:02:52]} 4. Nc3 {[%clk 0:02:58]}  c6 {[%clk 0:02:52]} 5. d4 {[%clk 0:02:58]}  Nf6 {[%clk 0:02:52]} 6. Nf3 {[%clk 0:02:58]}  Bg4 {[%clk 0:02:52]} 7. Be2 {[%clk 0:02:58]}  e6 {[%clk 0:02:50]} 8. O-O {[%clk 0:02:58]}  Bd6 {[%clk 0:02:42]} 9. a3 {[%clk 0:02:49]}  Nbd7 {[%clk 0:02:42]} 10. b4 {[%clk 0:02:49]}  Qd8 {[%clk 0:02:39]} 11. Bg5 {[%clk 0:02:47]}  Rc8 {[%clk 0:02:36]} 12. Re1 {[%clk 0:02:39]}  Bb8 {[%clk 0:02:35]} 13. d5 {[%clk 0:02:27]}  cxd5 {[%clk 0:02:33]} 14. h3 {[%clk 0:02:23]}  Bxf3 {[%clk 0:02:32]} 15. Bxf3 {[%clk 0:02:24]}  Qc7 {[%clk 0:02:13]} 16. g3 {[%clk 0:02:11]}  O-O {[%clk 0:02:12]} 17. Nb5 {[%clk 0:01:55]}  Qxc4 {[%clk 0:01:57]} 18. Be2 {[%clk 0:01:49]}  Qc2 {[%clk 0:01:27]} 19. Qxc2 {[%clk 0:01:32]}  Rxc2 {[%clk 0:01:24]} 20. Bd3 {[%clk 0:01:33]}  Rcc8 {[%clk 0:01:14]} 21. Be3 {[%clk 0:01:32]}  a6 {[%clk 0:01:14]} 22. Nd4 {[%clk 0:01:32]}  e5 {[%clk 0:01:07]} 23. Nf5 {[%clk 0:01:31]}  d4 {[%clk 0:00:49]} 24. Ne7+ {[%clk 0:01:28]}  Kh8 {[%clk 0:00:46]} 25. Nxc8 {[%clk 0:01:24]}  dxe3 {[%clk 0:00:45]} 26. Ne7 {[%clk 0:01:24]}  exf2+ {[%clk 0:00:44]} 27. Kxf2 {[%clk 0:01:24]}  Re8 {[%clk 0:00:31]} 28. Nf5 {[%clk 0:01:16]}  g6 {[%clk 0:00:30]} 29. Ne3 {[%clk 0:01:09]}  Ba7 {[%clk 0:00:29]} 30. Kg2 {[%clk 0:01:07]}  Bd4 {[%clk 0:00:28]} 31. Rad1 {[%clk 0:01:06]}  Rc8 {[%clk 0:00:19]} 32. Nc4 {[%clk 0:00:58]}  b5 {[%clk 0:00:17]} 33. Nd6 {[%clk 0:00:49]}  Rc3 {[%clk 0:00:15]} 34. Ne4 {[%clk 0:00:46]}  Nxe4 {[%clk 0:00:14]} 35. Bxe4 {[%clk 0:00:38]}  Rxa3 {[%clk 0:00:13]} 36. Bc6 {[%clk 0:00:38]}  Ra2+ {[%clk 0:00:12]} 37. Kh1 {[%clk 0:00:37]}  Nf6 {[%clk 0:00:09]} 38. g4 {[%clk 0:00:35]}  h5 {[%clk 0:00:00]} 39. g5 {[%clk 0:00:35]} 1-0


[Site "https://www.chess.com"]

[Event "Titled Tuesday Blitz August 1 Late 2023"]
[White "Grischuk, Alexander"]
[Black "Firouzja, Alireza"]
[WhiteFideId "4126025"]
[BlackFideId "12573981"]
[WhiteElo "3010"]
[BlackElo "3099"]
[Result "1-0"]
[Round "10"]
[TimeControl "180+1"]
[Date "2023.08.01"]
[WhiteClock "0:00:09"]
[BlackClock "0:00:00"]
[Board "2"]

1. d4 {[%clk 0:03:00]}  Nf6 {[%clk 0:02:59]} 2. Nf3 {[%clk 0:03:01]}  g6 {[%clk 0:02:59]} 3. e3 {[%clk 0:03:01]}  Bg7 {[%clk 0:02:59]} 4. Be2 {[%clk 0:03:01]}  O-O {[%clk 0:03:00]} 5. O-O {[%clk 0:03:02]}  d6 {[%clk 0:03:00]} 6. b3 {[%clk 0:03:02]}  Nbd7 {[%clk 0:03:00]} 7. Bb2 {[%clk 0:03:01]}  Re8 {[%clk 0:03:00]} 8. c4 {[%clk 0:03:00]}  c6 {[%clk 0:02:57]} 9. Nc3 {[%clk 0:02:39]}  e5 {[%clk 0:02:57]} 10. dxe5 {[%clk 0:02:40]}  dxe5 {[%clk 0:02:57]} 11. Nd2 {[%clk 0:02:40]}  e4 {[%clk 0:02:57]} 12. Qc2 {[%clk 0:02:37]}  Qe7 {[%clk 0:02:57]} 13. Rfd1 {[%clk 0:02:32]}  h5 {[%clk 0:02:49]} 14. h3 {[%clk 0:02:28]}  Nf8 {[%clk 0:02:37]} 15. a3 {[%clk 0:02:21]}  N8h7 {[%clk 0:02:32]} 16. b4 {[%clk 0:02:19]}  Ng5 {[%clk 0:02:16]} 17. Bf1 {[%clk 0:02:19]}  Bf5 {[%clk 0:01:53]} 18. c5 {[%clk 0:02:13]}  Qe6 {[%clk 0:01:53]} 19. Ne2 {[%clk 0:01:50]}  Nd5 {[%clk 0:01:27]} 20. Bxg7 {[%clk 0:01:43]}  Kxg7 {[%clk 0:01:28]} 21. Qb2+ {[%clk 0:01:41]}  Qf6 {[%clk 0:01:19]} 22. Qxf6+ {[%clk 0:01:40]}  Nxf6 {[%clk 0:01:13]} 23. Nc4 {[%clk 0:01:39]}  Be6 {[%clk 0:01:02]} 24. Nd6 {[%clk 0:01:15]}  Re7 {[%clk 0:01:02]} 25. Nf4 {[%clk 0:01:16]}  h4 {[%clk 0:00:59]} 26. Rac1 {[%clk 0:01:11]}  Bb3 {[%clk 0:00:51]} 27. Rd2 {[%clk 0:01:09]}  a5 {[%clk 0:00:51]} 28. b5 {[%clk 0:01:04]}  cxb5 {[%clk 0:00:47]} 29. Bxb5 {[%clk 0:01:05]}  a4 {[%clk 0:00:47]} 30. Ne2 {[%clk 0:00:47]}  Rc7 {[%clk 0:00:46]} 31. Nd4 {[%clk 0:00:47]}  Bd5 {[%clk 0:00:31]} 32. Rb2 {[%clk 0:00:39]}  Rd8 {[%clk 0:00:30]} 33. Rbb1 {[%clk 0:00:36]}  b6 {[%clk 0:00:30]} 34. Bxa4 {[%clk 0:00:28]}  bxc5 {[%clk 0:00:18]} 35. N6b5 {[%clk 0:00:21]}  Rcc8 {[%clk 0:00:18]} 36. Nb3 {[%clk 0:00:20]}  Ne6 {[%clk 0:00:15]} 37. Nc3 {[%clk 0:00:20]}  Bc4 {[%clk 0:00:12]} 38. Na5 {[%clk 0:00:16]}  Bd3 {[%clk 0:00:12]} 39. Rb7 {[%clk 0:00:13]}  Rd6 {[%clk 0:00:05]} 40. Bb5 {[%clk 0:00:09]}  Ra8 {[%clk 0:00:05]} 41. Nc4 {[%clk 0:00:09]}  Bxc4 {[%clk 0:00:02]} 42. Bxc4 {[%clk 0:00:10]}  Ng8 {[%clk 0:00:00]} 43. Nxe4 {[%clk 0:00:09]} 1-0


[Site "https://www.chess.com"]

[Event "Titled Tuesday Blitz August 1 Late 2023"]
[White "Demidov, Mikhail"]
[Black "Zhigalko, Sergei"]
[WhiteFideId "4197143"]
[BlackFideId "13502956"]
[WhiteElo "2946"]
[BlackElo "2930"]
[Result "1/2-1/2"]
[Round "10"]
[TimeControl "180+1"]
[Date "2023.08.01"]
[WhiteClock "0:00:04"]
[BlackClock "0:00:06"]
[Board "3"]

1. Nf3 {[%clk 0:03:00]}  d5 {[%clk 0:02:58]} 2. d4 {[%clk 0:03:00]}  e6 {[%clk 0:02:58]} 3. c4 {[%clk 0:03:00]}  c6 {[%clk 0:02:58]} 4. e3 {[%clk 0:03:00]}  Bd6 {[%clk 0:02:58]} 5. Bd3 {[%clk 0:02:55]}  f5 {[%clk 0:02:58]} 6. b3 {[%clk 0:02:55]}  Nf6 {[%clk 0:02:59]} 7. O-O {[%clk 0:02:54]}  Qe7 {[%clk 0:02:59]} 8. Bb2 {[%clk 0:02:54]}  O-O {[%clk 0:02:59]} 9. Nc3 {[%clk 0:02:54]}  Ne4 {[%clk 0:02:54]} 10. Ne2 {[%clk 0:02:52]}  Nd7 {[%clk 0:02:54]} 11. Ne5 {[%clk 0:02:50]}  Nxe5 {[%clk 0:02:54]} 12. dxe5 {[%clk 0:02:50]}  Bc5 {[%clk 0:02:54]} 13. Rc1 {[%clk 0:02:46]}  Bd7 {[%clk 0:02:42]} 14. Bd4 {[%clk 0:02:37]}  Ba3 {[%clk 0:02:18]} 15. Rc2 {[%clk 0:02:35]}  a5 {[%clk 0:02:14]} 16. f3 {[%clk 0:02:32]}  Nc5 {[%clk 0:02:13]} 17. cxd5 {[%clk 0:02:06]}  cxd5 {[%clk 0:01:54]} 18. Bb2 {[%clk 0:01:49]}  Bxb2 {[%clk 0:01:34]} 19. Rxb2 {[%clk 0:01:49]}  Rfc8 {[%clk 0:01:34]} 20. Nd4 {[%clk 0:01:43]}  Nxd3 {[%clk 0:01:22]} 21. Qxd3 {[%clk 0:01:43]}  Qa3 {[%clk 0:01:23]} 22. Qd2 {[%clk 0:01:35]}  Rc7 {[%clk 0:01:12]} 23. Rc1 {[%clk 0:01:31]}  Rxc1+ {[%clk 0:01:09]} 24. Qxc1 {[%clk 0:01:32]}  Rc8 {[%clk 0:01:09]} 25. Qd2 {[%clk 0:01:33]}  b6 {[%clk 0:00:43]} 26. h3 {[%clk 0:01:20]}  h6 {[%clk 0:00:39]} 27. f4 {[%clk 0:01:14]}  Kh7 {[%clk 0:00:26]} 28. Kh2 {[%clk 0:01:14]}  Rc7 {[%clk 0:00:23]} 29. Rc2 {[%clk 0:01:07]}  Rc5 {[%clk 0:00:23]} 30. Qd3 {[%clk 0:00:57]}  Qb4 {[%clk 0:00:21]} 31. g4 {[%clk 0:00:49]}  g6 {[%clk 0:00:21]} 32. gxf5 {[%clk 0:00:50]}  gxf5 {[%clk 0:00:20]} 33. Rg2 {[%clk 0:00:49]}  Rc8 {[%clk 0:00:11]} 34. Qe2 {[%clk 0:00:25]}  Rg8 {[%clk 0:00:10]} 35. Rxg8 {[%clk 0:00:24]}  Kxg8 {[%clk 0:00:11]} 36. Qc2 {[%clk 0:00:18]}  Qe1 {[%clk 0:00:10]} 37. Qe2 {[%clk 0:00:15]}  Qc1 {[%clk 0:00:09]} 38. Kg2 {[%clk 0:00:12]}  b5 {[%clk 0:00:07]} 39. Kf2 {[%clk 0:00:11]}  a4 {[%clk 0:00:05]} 40. bxa4 {[%clk 0:00:10]}  bxa4 {[%clk 0:00:05]} 41. Qc2 {[%clk 0:00:09]}  Qh1 {[%clk 0:00:04]} 42. Qc7 {[%clk 0:00:08]}  Qh2+ {[%clk 0:00:03]} 43. Ke1 {[%clk 0:00:08]}  Qxh3 {[%clk 0:00:02]} 44. Qd8+ {[%clk 0:00:06]}  Be8 {[%clk 0:00:01]} 45. Qxe8+ {[%clk 0:00:06]}  Kh7 {[%clk 0:00:01]} 46. Qf7+ {[%clk 0:00:06]}  Kh8 {[%clk 0:00:02]} 47. Qf6+ {[%clk 0:00:06]}  Kh7 {[%clk 0:00:02]} 48. Qe7+ {[%clk 0:00:06]}  Kh8 {[%clk 0:00:02]} 49. Kd2 {[%clk 0:00:06]}  Qg2+ {[%clk 0:00:01]} 50. Ne2 {[%clk 0:00:07]}  Qg8 {[%clk 0:00:01]} 51. Qf6+ {[%clk 0:00:06]}  Kh7 {[%clk 0:00:02]} 52. Qe7+ {[%clk 0:00:06]}  Kh8 {[%clk 0:00:02]} 53. Nd4 {[%clk 0:00:06]}  Qg2+ {[%clk 0:00:02]} 54. Kc3 {[%clk 0:00:05]}  Qxa2 {[%clk 0:00:02]} 55. Qf8+ {[%clk 0:00:04]}  Kh7 {[%clk 0:00:03]} 56. Qf7+ {[%clk 0:00:05]}  Kh8 {[%clk 0:00:03]} 57. Qf6+ {[%clk 0:00:06]}  Kh7 {[%clk 0:00:03]} 58. Nxe6 {[%clk 0:00:05]}  Qb3+ {[%clk 0:00:03]} 59. Kd2 {[%clk 0:00:04]}  Qb2+ {[%clk 0:00:04]} 60. Kd3 {[%clk 0:00:04]}  Qb3+ {[%clk 0:00:04]} 61. Ke2 {[%clk 0:00:05]}  Qc2+ {[%clk 0:00:04]} 62. Kf3 {[%clk 0:00:05]}  Qd1+ {[%clk 0:00:05]} 63. Kf2 {[%clk 0:00:05]}  Qd2+ {[%clk 0:00:04]} 64. Kf3 {[%clk 0:00:05]}  Qd1+ {[%clk 0:00:05]} 65. Kg3 {[%clk 0:00:04]}  Qg1+ {[%clk 0:00:05]} 66. Kf3 {[%clk 0:00:04]}  Qf1+ {[%clk 0:00:06]} 67. Kg3 {[%clk 0:00:04]}  Qg1+ {[%clk 0:00:06]} 68. Kf3 {[%clk 0:00:03]}  Qf1+ {[%clk 0:00:06]} 69. Kg3 {[%clk 0:00:04]}  Qg1+ {[%clk 0:00:06]} 1/2-1/2


[Site "https://www.chess.com"]

[Event "Titled Tuesday Blitz August 1 Late 2023"]
[White "Rasulov, Vugar"]
[Black "Martinez Alcantara, Jose Eduardo"]
[WhiteFideId "13402390"]
[BlackFideId "3805662"]
[WhiteElo "2837"]
[BlackElo "2979"]
[Result "0-1"]
[Round "10"]
[TimeControl "180+1"]
[Date "2023.08.01"]
[WhiteClock "0:00:00"]
[BlackClock "0:00:31"]
[Board "6"]

1. d4 {[%clk 0:03:00]}  Nf6 {[%clk 0:02:58]} 2. c4 {[%clk 0:03:01]}  e6 {[%clk 0:02:59]} 3. Nc3 {[%clk 0:03:02]}  Bb4 {[%clk 0:02:59]} 4. e3 {[%clk 0:03:02]}  O-O {[%clk 0:03:00]} 5. Ne2 {[%clk 0:03:02]}  d5 {[%clk 0:02:48]} 6. a3 {[%clk 0:03:02]}  Be7 {[%clk 0:02:49]} 7. Nf4 {[%clk 0:03:00]}  a6 {[%clk 0:02:43]} 8. cxd5 {[%clk 0:02:58]}  exd5 {[%clk 0:02:43]} 9. Bd3 {[%clk 0:02:58]}  g6 {[%clk 0:02:34]} 10. h4 {[%clk 0:02:55]}  c5 {[%clk 0:02:25]} 11. h5 {[%clk 0:02:45]}  cxd4 {[%clk 0:02:24]} 12. exd4 {[%clk 0:02:46]}  g5 {[%clk 0:02:16]} 13. Nfe2 {[%clk 0:02:42]}  h6 {[%clk 0:02:13]} 14. f4 {[%clk 0:02:25]}  g4 {[%clk 0:02:08]} 15. f5 {[%clk 0:02:23]}  Kg7 {[%clk 0:02:08]} 16. Bf4 {[%clk 0:02:21]}  Nc6 {[%clk 0:02:08]} 17. Qd2 {[%clk 0:02:20]}  Rh8 {[%clk 0:02:08]} 18. O-O-O {[%clk 0:02:17]}  b5 {[%clk 0:02:09]} 19. Be5 {[%clk 0:02:07]}  b4 {[%clk 0:02:09]} 20. axb4 {[%clk 0:02:06]}  Nxb4 {[%clk 0:02:10]} 21. Bb1 {[%clk 0:02:00]}  Bb7 {[%clk 0:01:56]} 22. Nf4 {[%clk 0:01:59]}  Rc8 {[%clk 0:01:54]} 23. Qe2 {[%clk 0:01:52]}  Kf8 {[%clk 0:01:38]} 24. Rhe1 {[%clk 0:01:41]}  Rg8 {[%clk 0:01:31]} 25. Ng6+ {[%clk 0:01:24]}  fxg6 {[%clk 0:01:26]} 26. fxg6 {[%clk 0:01:25]}  Rc6 {[%clk 0:01:09]} 27. Rf1 {[%clk 0:01:17]}  Kg7 {[%clk 0:01:08]} 28. Qxg4 {[%clk 0:01:09]}  Qc8 {[%clk 0:00:45]} 29. Qxc8 {[%clk 0:01:09]}  Bxc8 {[%clk 0:00:40]} 30. Rf4 {[%clk 0:01:06]}  Rf8 {[%clk 0:00:35]} 31. Bf5 {[%clk 0:00:38]}  Kg8 {[%clk 0:00:35]} 32. Bxc8 {[%clk 0:00:37]}  Rcxc8 {[%clk 0:00:35]} 33. Kd2 {[%clk 0:00:21]}  Nxh5 {[%clk 0:00:31]} 34. Rxf8+ {[%clk 0:00:21]}  Rxf8 {[%clk 0:00:32]} 35. Rh1 {[%clk 0:00:18]}  Ng7 {[%clk 0:00:32]} 36. Ke2 {[%clk 0:00:17]}  Bg5 {[%clk 0:00:27]} 37. Bd6 {[%clk 0:00:13]}  Re8+ {[%clk 0:00:28]} 38. Kf3 {[%clk 0:00:12]}  Nc6 {[%clk 0:00:28]} 39. Bc5 {[%clk 0:00:11]}  Nf5 {[%clk 0:00:28]} 40. Nxd5 {[%clk 0:00:10]}  Ncxd4+ {[%clk 0:00:25]} 41. Bxd4 {[%clk 0:00:08]}  Nxd4+ {[%clk 0:00:26]} 42. Kg4 {[%clk 0:00:08]}  Re4+ {[%clk 0:00:24]} 43. Kh3 {[%clk 0:00:09]}  Rh4+ {[%clk 0:00:24]} 44. Kg3 {[%clk 0:00:08]}  Rxh1 {[%clk 0:00:25]} 45. Ne7+ {[%clk 0:00:06]}  Bxe7 {[%clk 0:00:24]} 46. g7 {[%clk 0:00:07]}  Rb1 {[%clk 0:00:23]} 47. Kf2 {[%clk 0:00:08]}  Rxb2+ {[%clk 0:00:24]} 48. Ke3 {[%clk 0:00:08]}  Ne6 {[%clk 0:00:24]} 49. Kd3 {[%clk 0:00:09]}  Nxg7 {[%clk 0:00:24]} 50. Ke4 {[%clk 0:00:10]}  Rb5 {[%clk 0:00:24]} 51. g4 {[%clk 0:00:10]}  Rg5 {[%clk 0:00:25]} 52. Kd3 {[%clk 0:00:11]}  Rxg4 {[%clk 0:00:25]} 53. Kc3 {[%clk 0:00:12]}  h5 {[%clk 0:00:26]} 54. Kc2 {[%clk 0:00:13]}  Kf7 {[%clk 0:00:26]} 55. Kb1 {[%clk 0:00:14]}  Kg6 {[%clk 0:00:27]} 56. Kc1 {[%clk 0:00:15]}  Kg5 {[%clk 0:00:28]} 57. Kd1 {[%clk 0:00:16]}  h4 {[%clk 0:00:29]} 58. Ke2 {[%clk 0:00:16]}  h3 {[%clk 0:00:30]} 59. Kf1 {[%clk 0:00:17]}  h2 {[%clk 0:00:31]} 60. Kf2 {[%clk 0:00:18]}  h1=Q {[%clk 0:00:31]} 61. Ke2 {[%clk 0:00:18]}  Qh3 {[%clk 0:00:31]} 62. Kf2 {[%clk 0:00:00]}  Rg2+ {[%clk 0:00:31]} 0-1


[Site "https://www.chess.com"]

[Event "Titled Tuesday Blitz August 1 Late 2023"]
[White "Matlakov, Maxim"]
[Black "Ashraf, Artin"]
[WhiteFideId "4168003"]
[BlackFideId "22514805"]
[WhiteElo "2977"]
[BlackElo "2826"]
[Result "1-0"]
[Round "10"]
[TimeControl "180+1"]
[Date "2023.08.01"]
[WhiteClock "0:00:09"]
[BlackClock "0:00:00"]
[Board "7"]

1. e4 {[%clk 0:03:00]}  c5 {[%clk 0:02:59]} 2. Nf3 {[%clk 0:03:01]}  d6 {[%clk 0:03:00]} 3. d4 {[%clk 0:03:01]}  cxd4 {[%clk 0:03:01]} 4. Nxd4 {[%clk 0:03:02]}  Nf6 {[%clk 0:03:01]} 5. Bd3 {[%clk 0:03:03]}  g6 {[%clk 0:02:50]} 6. O-O {[%clk 0:03:01]}  Bg7 {[%clk 0:02:51]} 7. c4 {[%clk 0:03:01]}  O-O {[%clk 0:02:51]} 8. Nc3 {[%clk 0:02:54]}  Nc6 {[%clk 0:02:51]} 9. Nde2 {[%clk 0:02:52]}  Bd7 {[%clk 0:02:39]} 10. h3 {[%clk 0:02:52]}  Rc8 {[%clk 0:02:36]} 11. b3 {[%clk 0:02:52]}  a6 {[%clk 0:01:57]} 12. Be3 {[%clk 0:02:51]}  Qa5 {[%clk 0:01:55]} 13. Rc1 {[%clk 0:02:50]}  Ne5 {[%clk 0:01:52]} 14. Bb1 {[%clk 0:02:40]}  b5 {[%clk 0:01:52]} 15. Nd5 {[%clk 0:02:24]}  Nxd5 {[%clk 0:01:41]} 16. cxd5 {[%clk 0:02:25]}  Rxc1 {[%clk 0:01:13]} 17. Bxc1 {[%clk 0:02:26]}  Bc8 {[%clk 0:01:12]} 18. Bd2 {[%clk 0:02:21]}  Qa3 {[%clk 0:01:08]} 19. Bc1 {[%clk 0:02:05]}  Qa5 {[%clk 0:01:06]} 20. Nd4 {[%clk 0:02:04]}  Bb7 {[%clk 0:01:03]} 21. Bg5 {[%clk 0:01:54]}  Bf6 {[%clk 0:00:57]} 22. Bxf6 {[%clk 0:01:52]}  exf6 {[%clk 0:00:58]} 23. f4 {[%clk 0:01:48]}  Nd7 {[%clk 0:00:52]} 24. Kh2 {[%clk 0:01:48]}  Rc8 {[%clk 0:00:49]} 25. h4 {[%clk 0:01:46]}  Qc3 {[%clk 0:00:41]} 26. h5 {[%clk 0:01:45]}  Nf8 {[%clk 0:00:31]} 27. h6 {[%clk 0:01:45]}  Rc7 {[%clk 0:00:27]} 28. Ne2 {[%clk 0:01:24]}  Qb2 {[%clk 0:00:23]} 29. Rf3 {[%clk 0:01:08]}  Bc8 {[%clk 0:00:20]} 30. Qd4 {[%clk 0:00:51]}  Qxd4 {[%clk 0:00:17]} 31. Nxd4 {[%clk 0:00:52]}  Rc1 {[%clk 0:00:17]} 32. Bd3 {[%clk 0:00:50]}  Nd7 {[%clk 0:00:13]} 33. b4 {[%clk 0:00:40]}  Nb6 {[%clk 0:00:11]} 34. Nc6 {[%clk 0:00:32]}  Bd7 {[%clk 0:00:06]} 35. Na5 {[%clk 0:00:29]}  Kf8 {[%clk 0:00:04]} 36. Rf2 {[%clk 0:00:28]}  Rc3 {[%clk 0:00:04]} 37. Rd2 {[%clk 0:00:26]}  g5 {[%clk 0:00:02]} 38. g3 {[%clk 0:00:24]}  Kg8 {[%clk 0:00:02]} 39. Kg2 {[%clk 0:00:23]}  gxf4 {[%clk 0:00:01]} 40. gxf4 {[%clk 0:00:23]}  f5 {[%clk 0:00:02]} 41. Kf2 {[%clk 0:00:22]}  fxe4 {[%clk 0:00:03]} 42. Bxe4 {[%clk 0:00:23]}  f5 {[%clk 0:00:01]} 43. Bf3 {[%clk 0:00:23]}  Nc4 {[%clk 0:00:02]} 44. Re2 {[%clk 0:00:19]}  Kf8 {[%clk 0:00:01]} 45. Nc6 {[%clk 0:00:18]}  Bxc6 {[%clk 0:00:01]} 46. dxc6 {[%clk 0:00:19]}  Nb6 {[%clk 0:00:01]} 47. Re6 {[%clk 0:00:18]}  d5 {[%clk 0:00:02]} 48. c7 {[%clk 0:00:16]}  Na4 {[%clk 0:00:02]} 49. Rf6+ {[%clk 0:00:12]}  Ke7 {[%clk 0:00:02]} 50. Rxf5 {[%clk 0:00:13]}  Rxc7 {[%clk 0:00:03]} 51. Bxd5 {[%clk 0:00:13]}  Nc3 {[%clk 0:00:03]} 52. Rf7+ {[%clk 0:00:13]}  Kd6 {[%clk 0:00:03]} 53. Rxc7 {[%clk 0:00:14]}  Kxc7 {[%clk 0:00:04]} 54. Bg8 {[%clk 0:00:13]}  Ne4+ {[%clk 0:00:05]} 55. Ke3 {[%clk 0:00:13]}  Nf6 {[%clk 0:00:05]} 56. Be6 {[%clk 0:00:12]}  Kd6 {[%clk 0:00:06]} 57. Bf5 {[%clk 0:00:13]}  Nd5+ {[%clk 0:00:05]} 58. Kd4 {[%clk 0:00:12]}  Nf6 {[%clk 0:00:03]} 59. a3 {[%clk 0:00:12]}  Kc6 {[%clk 0:00:01]} 60. Be6 {[%clk 0:00:10]}  Kd6 {[%clk 0:00:01]} 61. Bf5 {[%clk 0:00:10]}  Ng8 {[%clk 0:00:01]} 62. Bxh7 {[%clk 0:00:10]}  Nxh6 {[%clk 0:00:02]} 63. Be4 {[%clk 0:00:11]}  Nf7 {[%clk 0:00:02]} 64. Bb7 {[%clk 0:00:11]}  Nd8 {[%clk 0:00:03]} 65. Bxa6 {[%clk 0:00:10]}  Ne6+ {[%clk 0:00:04]} 66. Ke4 {[%clk 0:00:10]}  Kc6 {[%clk 0:00:03]} 67. Bc8 {[%clk 0:00:10]}  Nc7 {[%clk 0:00:03]} 68. Ke5 {[%clk 0:00:10]}  Na8 {[%clk 0:00:02]} 69. f5 {[%clk 0:00:08]}  Nb6 {[%clk 0:00:03]} 70. Be6 {[%clk 0:00:09]}  Na4 {[%clk 0:00:02]} 71. f6 {[%clk 0:00:09]}  Nc3 {[%clk 0:00:00]} 72. f7 {[%clk 0:00:09]} 1-0


[Site "https://www.chess.com"]